bitfinex-derivatives/quotes_BTCF0:USTF0_20251214
["timestamp","ask_amount","ask_price","bid_price","bid_amount"]
[1765739844525,0.06144,88679.0,88678.0,0.05878]
[1765739846520,0.0675761,88667.0,88656.0,0.3608]
[1765739846713,0.0563,88657.0,88656.0,0.4295174]
[1765739847131,0.0563,88657.0,88656.0,0.4474674]
[1765739848130,0.05745914,88665.0,88664.0,0.05735]
[1765739848930,0.08325861,88665.0,88664.0,0.05735]
[1765739849715,0.08325861,88665.0,88664.0,0.05835]
[1765739850417,0.05845914,88665.0,88664.0,0.06135]
[1765739850924,0.08425902,88665.0,88664.0,0.06135]
[1765739851429,0.05845914,88665.0,88664.0,0.06135]
[1765739853716,0.06973544,88665.0,88664.0,0.004]
[1765739853923,0.05845914,88665.0,88664.0,0.004]
[1765739854124,0.05845914,88665.0,88664.0,0.03296]
[1765739854326,0.05845914,88665.0,88664.0,0.06135]
[1765739855324,0.05236158,88665.0,88664.0,0.06135]
[1765739855529,0.02797134,88665.0,88664.0,0.06135]
[1765739855718,0.05530134,88665.0,88664.0,0.06135]
[1765739857930,0.06657764,88665.0,88664.0,0.06135]
[1765739859932,0.05530134,88665.0,88664.0,0.06135]
[1765739864034,0.06657764,88665.0,88664.0,0.06135]
[1765739867338,0.46377492,88665.0,88664.0,0.004]
[1765739868437,0.46377492,88665.0,88664.0,0.003]
[1765739868632,0.46677492,88665.0,88664.0,0.003]
[1765739869032,0.46377492,88665.0,88664.0,0.003]
[1765739869236,0.0685673,88657.0,88656.0,0.00016914]
[1765739869434,0.45518458,88657.0,88656.0,0.00016914]
[1765739870243,0.0685687,88646.0,88645.0,0.05735]
[1765739870629,0.05729,88641.0,88640.0,0.02896]
[1765739870832,0.05729,88641.0,88640.0,0.05735]
[1765739871925,0.05729,88641.0,88640.0,0.05935]
[1765739873348,0.05829,88641.0,88640.0,0.06335]
[1765739874240,0.001,88641.0,88640.0,0.06335]
[1765739876456,0.05769,88641.0,88640.0,0.06335]
[1765739878135,0.05769,88641.0,88640.0,0.006]
[1765739878448,0.05769,88641.0,88640.0,0.03497]
[1765739878645,0.05769,88641.0,88640.0,0.006]
[1765739878846,0.41849,88641.0,88640.0,0.006]
[1765739879054,0.44452477,88641.0,88640.0,0.006]
[1765739879447,0.05666,88630.0,88629.0,0.0677809]
[1765739879634,0.0273,88630.0,88629.0,0.0677809]
[1765739879834,0.17120597,88639.0,88638.0,0.0843998]
[1765739880045,0.05666,88639.0,88638.0,0.0843998]
[1765739881837,0.006,88641.0,88640.0,0.0565]
[1765739882037,0.006,88641.0,88640.0,0.4173]
[1765739882038,0.06266,88641.0,88640.0,0.4173]
[1765739882438,0.06266,88641.0,88640.0,0.0565]
[1765739882753,0.05666,88641.0,88640.0,0.0565]
[1765739883139,0.05666,88641.0,88640.0,0.02897]
[1765739883344,0.0112791,88643.0,88638.0,0.07512]
[1765739883345,0.05666,88639.0,88638.0,0.07512]
[1765739884249,0.05666,88639.0,88638.0,0.07412]
[1765739884647,0.05666,88639.0,88638.0,0.07312]
[1765739885140,0.06266,88639.0,88638.0,0.07412]
[1765739885458,0.06766,88639.0,88638.0,0.002]
[1765739887449,0.09367044,88639.0,88638.0,0.002]
[1765739888255,0.09367419,88639.0,88638.0,0.002]
[1765739888649,0.05666,88628.0,88627.0,0.011281]
[1765739888855,0.05666,88628.0,88627.0,0.084401]
[1765739889745,0.41746,88634.0,88633.0,0.0565]
[1765739889953,0.05666,88634.0,88633.0,0.0565]
[1765739890547,0.05666,88634.0,88627.0,0.01662]
[1765739890548,0.06166,88639.0,88638.0,0.0677798]
[1765739890863,0.05682914,88649.0,88648.0,0.0843985]
[1765739891053,0.0828439,88649.0,88648.0,0.0843985]
[1765739892560,0.0898439,88649.0,88648.0,0.0853985]
[1765739893555,0.0978439,88649.0,88648.0,0.0863985]
[1765739893959,0.0898439,88649.0,88648.0,0.0853985]
[1765739894157,0.0898439,88649.0,88648.0,0.0863985]
[1765739894158,0.0958439,88649.0,88648.0,0.0863985]
[1765739895059,0.0888439,88649.0,88648.0,0.001]
[1765739895254,0.0958439,88649.0,88648.0,0.03097]
[1765739895858,0.0948439,88649.0,88648.0,0.03097]
[1765739896654,0.0878439,88649.0,88648.0,0.02997]
[1765739896953,0.0948439,88649.0,88648.0,0.03097]
[1765739897355,0.0948439,88649.0,88648.0,0.002]
[1765739900255,0.0948439,88649.0,88648.0,0.03097]
[1765739900452,0.0948439,88649.0,88648.0,0.002]
[1765739902460,0.0948439,88649.0,88648.0,0.001]
[1765739902665,0.05666,88634.0,88633.0,0.0565]
[1765739903064,0.05666,88634.0,88633.0,0.0677804]
[1765739903767,0.05966,88634.0,88633.0,0.0687804]
[1765739903964,0.06366,88634.0,88633.0,0.0697804]
[1765739904658,0.06466,88634.0,88633.0,0.0697804]
[1765739905267,0.09086993,88634.0,88633.0,0.0697804]
[1765739905875,0.08686993,88634.0,88633.0,0.0687804]
[1765739906069,0.09286993,88634.0,88633.0,0.0697804]
[1765739907658,0.10415023,88634.0,88633.0,0.002]
[1765739908065,0.10415023,88634.0,88633.0,0.02954]
[1765739908266,0.10415023,88634.0,88633.0,0.05946]
[1765739910469,0.09286993,88634.0,88633.0,0.05946]
[1765739913471,0.09286993,88634.0,88633.0,0.002]
[1765739919865,0.09286993,88634.0,88611.0,0.02938]
[1765739919866,0.0690531,88612.0,88611.0,0.02938]
[1765739920068,0.0690531,88612.0,88602.0,0.01768]
[1765739920069,0.05777,88608.0,88602.0,0.01768]
[1765739920268,0.05777,88608.0,88607.0,0.05678286]
[1765739921171,0.02883,88608.0,88607.0,0.05678286]
[1765739921372,0.41857,88612.0,88611.0,0.0567]
[1765739921769,0.05777,88612.0,88611.0,0.0567]
[1765739921971,0.05777,88612.0,88607.0,8.286e-05]
[1765739921972,0.05777,88608.0,88607.0,8.286e-05]
[1765739922177,0.05877,88608.0,88607.0,0.00208286]
[1765739922681,0.05777,88608.0,88607.0,0.05678286]
[1765739923370,0.09448519,88608.0,88607.0,8.286e-05]
[1765739923575,0.05777,88597.0,88596.0,0.07438]
[1765739924576,0.05786835,88597.0,88596.0,0.07438]
[1765739925577,0.05786835,88597.0,88596.0,0.07538]
[1765739925981,0.05886835,88597.0,88596.0,0.07638]
[1765739926177,0.02894,88592.0,88574.0,0.36398442]
[1765739926472,0.02894,88592.0,88578.0,0.01768]
[1765739926473,0.11462427,88584.0,88578.0,0.01768]
[1765739926670,0.12591047,88588.0,88585.0,0.07438]
[1765739926865,0.02620369,88587.0,88585.0,0.07438]
[1765739927071,0.02620369,88587.0,88585.0,0.01768]
[1765739927072,0.0112864,88586.0,88585.0,0.01768]
[1765739927470,0.03736933,88586.0,88585.0,0.01768]
[1765739928082,0.0112864,88586.0,88585.0,0.01768]
[1765739928581,0.0112864,88586.0,88578.0,0.02168]
[1765739928582,0.0112873,88579.0,88578.0,0.02168]
[1765739928882,0.0112873,88579.0,88552.0,0.3608]
[1765739928883,0.3608,88579.0,88552.0,0.3608]
[1765739929085,0.3608,88579.0,88559.0,0.0567]
[1765739929086,0.3608,88560.0,88559.0,0.0567]
[1765739929272,0.36089835,88560.0,88559.0,0.0567]
[1765739929473,0.00016934,88568.0,88567.0,0.0567]
[1765739929669,0.00016934,88568.0,88567.0,0.0679888]
[1765739930370,0.11462427,88580.0,88566.0,0.3608]
[1765739930371,0.11462427,88580.0,88579.0,0.0567]
[1765739930571,0.02601894,88580.0,88579.0,0.0567]
[1765739931484,0.00016934,88588.0,88586.0,0.0567]
[1765739931786,0.3868138,88587.0,88586.0,0.0567]
[1765739931980,0.3981001,88587.0,88586.0,0.0567]
[1765739932678,0.4061001,88587.0,88586.0,0.0577]
[1765739932873,0.4131001,88587.0,88586.0,0.0577]
[1765739933280,0.4018138,88587.0,88586.0,0.0577]
[1765739933988,0.4018138,88587.0,88586.0,0.0552]
[1765739934488,0.4008138,88587.0,88586.0,0.001]
[1765739935084,0.4008138,88587.0,88571.0,0.00016934]
[1765739935085,0.8008138,88587.0,88571.0,0.00016934]
[1765739935291,0.3608,88572.0,88571.0,0.00016934]
[1765739935481,0.7476138,88572.0,88571.0,0.00016934]
[1765739936280,0.7476138,88572.0,88571.0,0.00116934]
[1765739937289,0.7476138,88572.0,88571.0,0.03301934]
[1765739937485,0.3868138,88572.0,88571.0,0.06498934]
[1765739937991,0.3968138,88572.0,88571.0,0.06498934]
[1765739938293,0.408102,88572.0,88571.0,0.00116934]
[1765739938792,0.3820882,88572.0,88571.0,0.00116934]
[1765739939196,0.40818728,88572.0,88571.0,0.00116934]
[1765739939384,0.40818728,88572.0,88557.0,0.04953]
[1765739939584,0.3608,88559.0,88557.0,0.04953]
[1765739940294,0.3720899,88559.0,88557.0,0.04953]
[1765739940792,0.3720899,88559.0,88557.0,0.01768]
[1765739940994,0.3720899,88559.0,88557.0,0.01868]
[1765739941386,0.3720899,88559.0,88557.0,0.001]
[1765739941581,0.3730899,88559.0,88558.0,0.03197]
[1765739941785,0.3750899,88559.0,88558.0,0.06382]
[1765739941992,0.3638,88559.0,88558.0,0.06382]
[1765739942189,0.3638,88559.0,88557.0,0.001]
[1765739942396,0.3638,88559.0,88558.0,0.06382]
[1765739943995,0.3638,88559.0,88558.0,0.06482]
[1765739944396,0.3638,88559.0,88558.0,0.001]
[1765739944887,0.3638,88559.0,88558.0,0.03285]
[1765739945887,0.3638,88559.0,88558.0,0.06482]
[1765739946088,0.38991572,88559.0,88558.0,0.06482]
[1765739947396,0.38991572,88559.0,88558.0,0.001]
[1765739949598,1.09831572,88559.0,88558.0,0.001]
[1765739949799,0.99943572,88559.0,88558.0,0.001]
[1765739950600,0.38991572,88559.0,88558.0,0.06482]
[1765739950791,1.09827572,88559.0,88558.0,0.06482]
[1765739951188,0.38991572,88559.0,88558.0,0.06482]
[1765739951392,1.09831572,88559.0,88558.0,0.06482]
[1765739951796,0.38991572,88559.0,88558.0,0.07611]
[1765739955102,0.38991572,88559.0,88558.0,0.06482]
[1765739958610,0.02911572,88559.0,88558.0,0.06482]
[1765739961408,0.00016934,88567.0,88566.0,0.0751089]
[1765739961996,0.00016934,88567.0,88558.0,0.001]
[1765739961997,0.0564898,88559.0,88558.0,0.001]
[1765739962408,0.4172898,88559.0,88558.0,0.001]
[1765739963310,0.0634116,88545.0,88544.0,0.08206987]
[1765739963510,0.4242116,88545.0,88544.0,0.08206987]
[1765739964505,0.4252116,88545.0,88544.0,0.08306987]
[1765739966103,0.4262116,88545.0,88544.0,0.08506987]
[1765739970619,0.41492,88545.0,88544.0,0.08506987]
[1765739971002,0.001,88545.0,88544.0,0.08506987]
[1765739971208,0.00016934,88567.0,88566.0,0.05741]
[1765739971712,0.02582934,88567.0,88566.0,0.05741]
[1765739972006,0.05148934,88567.0,88566.0,0.05741]
[1765739972410,0.05548934,88567.0,88566.0,0.05741]
[1765739973112,0.06148934,88567.0,88566.0,0.05841]
[1765739973513,0.08777601,88567.0,88566.0,0.05841]
[1765739977518,0.08565601,88567.0,88566.0,0.0696989]
[1765739977821,0.08565601,88567.0,88566.0,0.05841]
[1765739982331,0.03645601,88567.0,88566.0,0.05841]
[1765739984644,0.01016934,88567.0,88566.0,0.41921]
[1765739986336,0.16399281,88580.0,88579.0,0.05741]
[1765739986543,0.02626472,88580.0,88579.0,0.05741]
[1765739986742,0.05086472,88580.0,88579.0,0.05741]
[1765739987231,0.02626472,88580.0,88579.0,0.05741]
[1765739987629,0.03226472,88580.0,88579.0,0.05741]
[1765739988633,0.00016934,88588.0,88579.0,0.05841]
[1765739988833,0.16399281,88600.0,88599.0,0.0741]
[1765739989033,0.0246,88600.0,88599.0,0.0741]
[1765739989240,0.0604842,88604.0,88603.0,0.05741]
[1765739989441,0.0358842,88604.0,88603.0,0.05741]
[1765739990134,0.3744042,88605.0,88604.0,0.05741]
[1765739990843,0.3779442,88605.0,88604.0,0.05741]
[1765739991238,0.3892282,88605.0,88604.0,0.05741]
[1765739992542,0.00590609,88612.0,88603.0,0.002]
[1765739992543,0.00016934,88612.0,88611.0,0.0686932]
[1765739992742,0.37233,88630.0,88629.0,0.05741]
[1765739992943,0.37233,88630.0,88629.0,0.0686909]
[1765739992944,0.30969,88630.0,88629.0,0.0686909]
[1765739993147,0.41812,88647.0,88646.0,0.05741]
[1765739993350,0.02772,88647.0,88646.0,0.05741]
[1765739993643,0.3720767,88663.0,88644.0,0.0112789]
[1765739993644,0.00039505,88655.0,88654.0,0.0686877]
[1765739994947,0.00239505,88655.0,88654.0,0.0696877]
[1765739995849,0.00539505,88655.0,88654.0,0.0706877]
[1765739996349,0.00139505,88655.0,88654.0,0.0706877]
[1765739996547,0.42069606,88663.0,88662.0,0.06558]
[1765739996950,0.06989,88657.0,88656.0,0.09361]
[1765739998050,0.07089,88657.0,88656.0,0.09461]
[1765739998250,0.07389,88657.0,88656.0,0.09561]
[1765739999242,0.07389,88657.0,88656.0,0.002]
[1765739999744,0.07289,88657.0,88656.0,0.001]
[1765739999945,0.07389,88657.0,88656.0,0.002]
[1765740000541,0.07289,88657.0,88656.0,0.001]
[1765740000742,0.07389,88657.0,88656.0,0.002]
[1765740001847,0.004,88657.0,88656.0,0.09561]
[1765740002648,0.3608,88677.0,88664.0,0.073]
[1765740002954,0.3608,88677.0,88664.0,0.0842765]
[1765740003253,0.3608,88677.0,88676.0,0.073]
[1765740003643,0.39595,88677.0,88676.0,0.073]
[1765740003839,0.43069,88677.0,88676.0,0.073]
[1765740005052,0.43569,88677.0,88676.0,0.074]
[1765740006141,0.3708,88677.0,88676.0,0.075]
[1765740007045,0.3688,88677.0,88676.0,0.075]
[1765740007245,0.003,88677.0,88676.0,0.074]
[1765740007446,0.006,88677.0,88676.0,0.074]
[1765740009354,0.07589,88677.0,88676.0,0.03642]
[1765740009554,0.07589,88677.0,88676.0,0.001]
[1765740011150,0.07589,88677.0,88676.0,0.074]
[1765740018462,0.10188207,88677.0,88676.0,0.074]
[1765740022861,0.06714207,88677.0,88676.0,0.074]
[1765740023067,0.10188207,88677.0,88676.0,0.074]
[1765740024862,0.10188207,88677.0,88676.0,0.03642]
[1765740025379,0.10188207,88677.0,88676.0,0.001]
[1765740026877,0.10188207,88677.0,88676.0,0.03642]
[1765740028776,0.10188207,88677.0,88676.0,0.07042]
[1765740029372,0.03199207,88677.0,88676.0,0.08945]
[1765740029982,0.02982267,88677.0,88676.0,0.08945]
[1765740031775,0.02982267,88677.0,88676.0,0.10057218]
[1765740032281,2.67e-06,88677.0,88676.0,0.10057218]
[1765740033583,0.06046861,88691.0,88690.0,0.08408]
[1765740033767,0.06046861,88693.0,88692.0,0.06731]
[1765740033975,0.0434125,88695.0,88694.0,0.06731]
[1765740034168,0.0773825,88695.0,88694.0,0.06731]
[1765740035072,0.0833825,88695.0,88694.0,0.06831]
[1765740035766,0.0883825,88695.0,88694.0,0.06931]
[1765740038477,0.14886768,88695.0,88694.0,0.06931]
[1765740039381,0.0883825,88695.0,88694.0,0.06931]
[1765740039879,0.0883825,88695.0,88694.0,0.002]
[1765740040580,0.14885621,88695.0,88694.0,0.002]
[1765740042381,0.0883825,88695.0,88694.0,0.002]
[1765740045577,0.11441595,88695.0,88694.0,0.002]
[1765740052087,0.0773852,88674.0,88673.0,0.42811]
[1765740052280,0.10341865,88674.0,88673.0,0.06731]
[1765740053388,0.10641865,88674.0,88673.0,0.06831]
[1765740058077,0.12488865,88674.0,88673.0,0.001]
[1765740060988,0.0753158,88669.0,88668.0,0.00016923]
[1765740061290,0.06404,88651.0,88650.0,0.08342]
[1765740062979,0.06504,88651.0,88650.0,0.08842]
[1765740063383,0.06604,88651.0,88650.0,0.09342]
[1765740063787,0.06604,88651.0,88650.0,0.08842]
[1765740063996,0.06504,88651.0,88650.0,0.09042]
[1765740064496,0.06404,88651.0,88650.0,0.08542]
[1765740064794,0.06504,88651.0,88650.0,0.08642]
[1765740067191,0.06504,88651.0,88650.0,0.0673]
[1765740068195,0.06504,88651.0,88650.0,0.003]
[1765740068594,0.06504,88651.0,88650.0,0.03407]
[1765740069101,0.06504,88651.0,88650.0,0.0673]
[1765740073303,0.001,88651.0,88650.0,0.08642]
[1765740073694,0.06504,88651.0,88650.0,0.08642]
[1765740073890,0.06504,88651.0,88650.0,0.0673]
[1765740074394,0.06504,88651.0,88650.0,0.03407]
[1765740075002,0.0753191,88643.0,88642.0,0.00016913]
[1765740075196,0.0753203,88634.0,88633.0,0.01136897]
[1765740075500,0.03152,88621.0,88620.0,0.0643]
[1765740075708,0.06404,88609.0,88608.0,0.08342]
[1765740076012,0.42484,88609.0,88608.0,0.0643]
[1765740076598,0.4361235,88609.0,88608.0,0.0643]
[1765740076801,0.06404,88608.0,88607.0,0.06438416]
[1765740077407,0.00016923,88617.0,88616.0,0.0643]
[1765740077408,0.06991943,88617.0,88616.0,0.0643]
[1765740078309,0.06420923,88617.0,88616.0,0.0643]
[1765740078698,0.06404,88608.0,88607.0,0.07666776]
[1765740079415,0.06404,88608.0,88607.0,0.06538416]
[1765740081012,0.06504,88608.0,88607.0,0.06638416]
[1765740082406,0.001,88608.0,88607.0,0.06638416]
[1765740082998,0.3608,88631.0,88630.0,0.0755808]
[1765740084112,0.3608,88631.0,88630.0,0.0765808]
[1765740084113,0.3628,88631.0,88630.0,0.0765808]
[1765740084504,0.39632,88631.0,88630.0,0.0765808]
[1765740085613,0.3638,88631.0,88630.0,0.0765808]
[1765740086010,0.00016923,88639.0,88638.0,0.06252]
[1765740086310,0.05742,88649.0,88648.0,0.06252]
[1765740086512,0.05742,88645.0,88644.0,0.0424889]
[1765740086717,0.05742,88645.0,88644.0,0.03121]
[1765740087215,0.05742,88645.0,88644.0,0.06252]
[1765740087608,0.05942,88645.0,88644.0,0.06352]
[1765740088114,0.05942,88645.0,88644.0,0.03221]
[1765740088715,0.06142,88645.0,88644.0,0.03221]
[1765740088910,0.06142,88645.0,88644.0,0.001]
[1765740089416,0.06119,88637.0,88636.0,0.00016923]
[1765740090211,0.0724699,88637.0,88636.0,0.00016923]
[1765740090917,0.0734699,88637.0,88636.0,0.00116923]
[1765740091512,0.0744699,88637.0,88636.0,0.00116923]
[1765740093113,0.10031455,88637.0,88636.0,0.00116923]
[1765740093319,0.46111455,88637.0,88636.0,0.00116923]
[1765740094111,0.46111357,88637.0,88636.0,0.00116923]
[1765740098025,0.46111357,88637.0,88636.0,0.06187923]
[1765740098524,0.46111357,88637.0,88636.0,0.00116923]
[1765740098916,0.46111357,88637.0,88636.0,0.03180923]
[1765740099112,0.46111357,88637.0,88636.0,0.00116923]
[1765740102627,0.44983367,88637.0,88636.0,0.06187923]
[1765740113332,0.41948367,88637.0,88636.0,0.06187923]
[1765740113923,0.44983367,88637.0,88636.0,0.06187923]
[1765740117437,0.41948367,88637.0,88636.0,0.06187923]
[1765740118032,0.3628,88637.0,88636.0,0.06187923]
[1765740118231,0.39036,88637.0,88636.0,0.06187923]
[1765740118427,0.42034,88637.0,88636.0,0.06187923]
[1765740121831,0.05954,88637.0,88636.0,0.06187923]
[1765740122837,0.02956,88637.0,88636.0,0.06187923]
[1765740123446,0.05954,88637.0,88636.0,0.06187923]
[1765740127154,0.08546596,88637.0,88636.0,0.06187923]
[1765740131357,0.05954,88637.0,88636.0,0.06187923]
[1765740131545,0.08546979,88637.0,88636.0,0.06187923]
[1765740134052,0.02792979,88637.0,88636.0,0.06187923]
[1765740134251,0.002,88637.0,88636.0,0.06187923]
[1765740134759,0.05765064,88653.0,88652.0,0.05661]
[1765740134956,0.08358813,88653.0,88652.0,0.05661]
[1765740135563,0.05360813,88653.0,88652.0,0.067888]
[1765740135857,0.08358813,88653.0,88652.0,0.067888]
[1765740136050,0.08658813,88653.0,88652.0,0.068888]
[1765740136359,0.09058813,88653.0,88652.0,0.069888]
[1765740136750,0.08558813,88653.0,88652.0,0.068888]
[1765740137152,0.08458813,88653.0,88652.0,0.068888]
[1765740138153,0.08458813,88653.0,88652.0,0.001]
[1765740138354,0.05754,88637.0,88630.0,0.3608]
[1765740138555,0.08347749,88637.0,88630.0,0.3608]
[1765740139354,0.08347749,88637.0,88636.0,0.00216923]
[1765740139859,0.08347749,88637.0,88636.0,0.00016923]
[1765740141253,0.08447749,88637.0,88636.0,0.00116923]
[1765740143059,0.05754,88613.0,88612.0,0.92796]
[1765740143369,0.05754,88613.0,88612.0,0.3608]
[1765740144068,0.05754,88613.0,88612.0,0.38922]
[1765740144271,0.05754,88613.0,88612.0,0.02842]
[1765740144669,0.05854,88613.0,88612.0,0.03542]
[1765740144863,0.05854,88613.0,88612.0,0.06361]
[1765740145276,0.05954,88613.0,88612.0,0.07061]
[1765740151966,0.0708229,88613.0,88612.0,0.07061]
[1765740152169,0.0708229,88613.0,88612.0,0.014]
[1765740152170,0.4316229,88613.0,88612.0,0.014]
[1765740152370,0.45747802,88613.0,88612.0,0.014]
[1765740152556,0.05528,88605.0,88604.0,0.00016923]
[1765740152762,0.44193512,88605.0,88604.0,0.00016923]
[1765740153764,0.44201928,88605.0,88604.0,0.00016923]
[1765740154071,0.05528,88589.0,88588.0,0.0699161]
[1765740155464,0.05628,88589.0,88588.0,0.0709161]
[1765740155871,0.05728,88589.0,88588.0,0.0709161]
[1765740156865,0.02936,88589.0,88588.0,0.0709161]
[1765740157168,0.001,88589.0,88588.0,0.0709161]
[1765740157373,0.002,88589.0,88588.0,0.0709161]
[1765740160662,0.05728,88589.0,88588.0,0.0709161]
[1765740162481,0.05728,88589.0,88588.0,0.05963]
[1765740165578,0.41808,88589.0,88588.0,0.001]
[1765740165786,0.05528,88581.0,88580.0,0.00016923]
[1765740165978,0.427367,88581.0,88580.0,0.00016923]
[1765740166183,0.42745116,88581.0,88580.0,0.00016923]
[1765740166975,0.42945116,88581.0,88580.0,0.00216923]
[1765740167785,0.42945116,88581.0,88580.0,0.03207923]
[1765740168976,0.42945116,88581.0,88580.0,0.00216923]
[1765740171186,0.45528028,88581.0,88580.0,0.00216923]
[1765740173884,0.45528028,88581.0,88580.0,0.03207923]
[1765740174983,0.44399328,88581.0,88580.0,0.06079923]
[1765740175182,0.41816416,88581.0,88580.0,0.06079923]
[1765740175379,0.44402281,88581.0,88580.0,0.06079923]
[1765740180587,0.08322281,88581.0,88580.0,0.06079923]
[1765740181689,0.02794281,88581.0,88580.0,0.06079923]
[1765740181887,0.00208416,88581.0,88580.0,0.06079923]
[1765740184889,0.3608,88607.0,88596.0,0.0685751]
[1765740185087,0.02608335,88597.0,88596.0,0.0685751]
[1765740185988,0.00016923,88597.0,88596.0,0.0695751]
[1765740186184,0.00916923,88597.0,88596.0,0.0705751]
[1765740187088,0.00416923,88597.0,88596.0,0.0695751]
[1765740187391,0.03401923,88597.0,88596.0,0.0705751]
[1765740187595,0.03201923,88597.0,88596.0,0.0705751]
[1765740188295,0.03001923,88597.0,88596.0,0.0695751]
[1765740188495,0.02901923,88597.0,88596.0,0.0695751]
[1765740188797,0.05707923,88597.0,88596.0,0.0695751]
[1765740189089,0.05607923,88597.0,88596.0,0.0695751]
[1765740189295,0.05707923,88597.0,88596.0,0.0695751]
[1765740189694,0.05607923,88597.0,88596.0,0.0862151]
[1765740189896,0.05807923,88597.0,88596.0,0.0872151]
[1765740190499,0.05907923,88597.0,88596.0,0.0872151]
[1765740190701,0.03201923,88597.0,88596.0,0.0872151]
[1765740191598,0.03001923,88597.0,88596.0,0.0862151]
[1765740191800,0.03101923,88597.0,88596.0,0.0872151]
[1765740192097,0.00316923,88597.0,88596.0,0.0872151]
[1765740193799,0.00316923,88597.0,88596.0,0.4480151]
[1765740202704,0.00316923,88597.0,88596.0,0.0872151]
[1765740202903,0.00316923,88597.0,88596.0,0.4480151]
[1765740204108,0.41571,88614.0,88613.0,0.0685729]
[1765740204295,0.44159538,88614.0,88613.0,0.0685729]
[1765740205500,0.44159538,88614.0,88613.0,0.0695729]
[1765740205703,0.44659538,88614.0,88613.0,0.0695729]
[1765740206006,0.05991,88614.0,88613.0,0.0695729]
[1765740206303,0.05991,88614.0,88613.0,0.0705729]
[1765740206505,0.06391,88614.0,88613.0,0.0705729]
[1765740208007,0.06391,88614.0,88613.0,0.08234527]
[1765740209107,0.06391,88614.0,88613.0,0.0705729]
[1765740212110,0.0896284,88614.0,88613.0,0.0705729]
[1765740212412,0.4504284,88614.0,88613.0,0.002]
[1765740213907,0.4504284,88614.0,88613.0,0.05863]
[1765740214702,0.0896284,88614.0,88613.0,0.05863]
[1765740218410,0.0347184,88614.0,88613.0,0.05863]
[1765740218907,0.009,88614.0,88613.0,0.05863]
[1765740219613,0.0376,88614.0,88613.0,0.05863]
[1765740223405,0.009,88614.0,88613.0,0.05863]
[1765740225112,0.009,88614.0,88613.0,0.41943]
[1765740228405,0.05675933,88622.0,88621.0,0.0679119]
[1765740228607,0.08245906,88622.0,88621.0,0.4287119]
[1765740228819,0.05675933,88622.0,88621.0,0.4287119]
[1765740229604,0.02876933,88622.0,88621.0,0.4287119]
[1765740229806,0.05675933,88622.0,88621.0,0.4287119]
[1765740230221,0.05775933,88622.0,88621.0,0.4297119]
[1765740230921,0.00116933,88622.0,88621.0,0.4297119]
[1765740231421,0.00216933,88622.0,88621.0,0.4297119]
[1765740235916,0.05875933,88622.0,88621.0,0.4297119]
[1765740236222,0.03076933,88622.0,88621.0,0.4297119]
[1765740236421,0.00216933,88622.0,88621.0,0.4297119]
[1765740241319,0.05799933,88622.0,88621.0,0.001]
[1765740241618,0.08365387,88622.0,88621.0,0.001]
[1765740244419,0.08365387,88622.0,88605.0,0.00016933]
[1765740244420,0.05583,88606.0,88605.0,0.03012933]
[1765740244611,0.05583,88606.0,88605.0,0.00016933]
[1765740245012,0.08148193,88606.0,88605.0,0.00016933]
[1765740245409,0.05583,88606.0,88605.0,0.00016933]
[1765740245809,0.05583,88606.0,88605.0,0.03012933]
[1765740246219,0.05583,88606.0,88605.0,0.00016933]
[1765740246613,0.05783,88606.0,88605.0,0.01016933]
[1765740247627,0.05783,88606.0,88605.0,0.04012933]
[1765740249324,0.05783,88606.0,88605.0,0.06930933]
[1765740250522,0.05783,88606.0,88605.0,0.08701933]
[1765740250724,0.002,88606.0,88605.0,0.08701933]
[1765740250923,0.05783,88606.0,88605.0,0.08701933]
[1765740253028,0.05783,88606.0,88605.0,0.01016933]
[1765740253426,0.05783,88606.0,88605.0,0.06930933]
[1765740254136,0.002,88606.0,88605.0,0.06930933]
[1765740260827,0.05783,88606.0,88605.0,0.06930933]
[1765740261533,0.02909,88606.0,88605.0,0.06930933]
[1765740261833,0.002,88606.0,88605.0,0.06930933]
[1765740264227,0.001,88606.0,88605.0,0.06930933]
[1765740267531,0.001,88606.0,88605.0,0.43010933]
[1765740267933,0.05636,88606.0,88605.0,0.43010933]
[1765740268637,0.02809,88606.0,88605.0,0.43010933]
[1765740269141,0.001,88606.0,88605.0,0.43010933]
[1765740271536,0.001,88606.0,88605.0,0.44638933]
[1765740272639,0.0663026,88616.0,88615.0,0.05709]
[1765740272942,0.09193457,88616.0,88615.0,0.05709]
[1765740274347,0.09193457,88616.0,88615.0,0.0683727]
[1765740274832,0.05602,88606.0,88605.0,0.42005933]
[1765740275037,0.08165038,88606.0,88605.0,0.43134333]
[1765740275638,0.08065038,88606.0,88605.0,0.42934333]
[1765740276040,0.08065038,88606.0,88605.0,0.43034333]
[1765740276445,0.08165038,88606.0,88605.0,0.43234333]
[1765740276745,0.02873,88606.0,88605.0,0.44862333]
[1765740277045,0.05602,88606.0,88605.0,0.44862333]
[1765740278438,0.02873,88606.0,88605.0,0.44862333]
[1765740278638,0.001,88606.0,88605.0,0.44862333]
[1765740279837,0.02873,88606.0,88605.0,0.44862333]
[1765740280147,0.05602,88606.0,88605.0,0.44862333]
[1765740287755,0.02873,88606.0,88605.0,0.44862333]
[1765740288255,0.001,88606.0,88605.0,0.44862333]
[1765740289247,0.05602,88606.0,88605.0,0.44862333]
[1765740289445,0.05602,88606.0,88605.0,0.43234333]
[1765740289653,0.05602,88606.0,88605.0,0.40316333]
[1765740290047,0.05602,88606.0,88605.0,0.43234333]
[1765740290857,0.02873,88606.0,88605.0,0.44862333]
[1765740291044,0.001,88606.0,88605.0,0.44862333]
[1765740291543,0.05602,88606.0,88605.0,0.44862333]
[1765740295254,0.05602,88606.0,88605.0,0.43234333]
[1765740295956,0.02873,88606.0,88605.0,0.44862333]
[1765740296260,0.001,88606.0,88605.0,0.44862333]
[1765740296855,0.03045,88606.0,88605.0,0.44862333]
[1765740301153,0.05872,88606.0,88605.0,0.44862333]
[1765740301354,0.03045,88606.0,88605.0,0.44862333]
[1765740301559,0.001,88606.0,88605.0,0.44862333]
[1765740302159,0.03045,88606.0,88605.0,0.44862333]
[1765740302764,0.05872,88606.0,88605.0,0.44862333]